[Event "*** Titled Tuesday Blitz AM"]
[Site "Chess.com"]
[Date "2020.01.07"]
[Round "1"]
[White "sganerdene"]
[Black "raswi"]
[Result "1-0"]
[WhiteElo "2662"]
[BlackElo "2296"]
[TimeControl "180+2"]
[EndTime "9:02:51 PST"]
[Termination "sganerdene won by resignation"]

1. e4 {[%clk 0:03:01.9]} 1... c5 {[%clk 0:03:00.7]} 2. Nf3 {[%clk 0:03:03]} 2...
Nc6 {[%clk 0:02:54.6]} 3. d4 {[%clk 0:03:04.1]} 3... cxd4 {[%clk 0:02:51.3]} 4.
Nxd4 {[%clk 0:03:05]} 4... Nf6 {[%clk 0:02:52.7]} 5. Nc3 {[%clk 0:03:05.5]} 5...
e5 {[%clk 0:02:53.6]} 6. Ndb5 {[%clk 0:03:06.7]} 6... d6 {[%clk 0:02:55.3]} 7.
Bg5 {[%clk 0:03:07.6]} 7... a6 {[%clk 0:02:56.7]} 8. Na3 {[%clk 0:03:08.8]} 8...
b5 {[%clk 0:02:58.3]} 9. Nd5 {[%clk 0:03:09.7]} 9... Be7 {[%clk 0:02:59.2]} 10.
Bxf6 {[%clk 0:03:11]} 10... Bxf6 {[%clk 0:03:00.9]} 11. c4 {[%clk 0:03:12.5]}
11... b4 {[%clk 0:03:02.3]} 12. Nc2 {[%clk 0:03:13.4]} 12... a5 {[%clk
0:03:03.9]} 13. Qf3 {[%clk 0:03:13.6]} 13... a4 {[%clk 0:02:42.9]} 14. Rd1
{[%clk 0:03:12.1]} 14... b3 {[%clk 0:02:40.9]} 15. axb3 {[%clk 0:03:12.7]} 15...
Rb8 {[%clk 0:02:42.3]} 16. b4 {[%clk 0:03:11.5]} 16... Be6 {[%clk 0:02:35.7]}
17. b5 {[%clk 0:03:06.2]} 17... Qa5+ {[%clk 0:02:27.4]} 18. Qc3 {[%clk
0:02:54.1]} 18... Qxc3+ {[%clk 0:02:26.9]} 19. Nxc3 {[%clk 0:02:53.8]} 19... Nd4
{[%clk 0:02:26.8]} 20. Nxd4 {[%clk 0:02:53.3]} 20... exd4 {[%clk 0:02:26.9]} 21.
Nxa4 {[%clk 0:02:54.5]} 21... Ra8 {[%clk 0:02:21.2]} 22. b3 {[%clk 0:02:55]}
22... Kd7 {[%clk 0:02:14.5]} 23. Nb6+ {[%clk 0:02:52.1]} 23... Kc7 {[%clk
0:02:15.7]} 24. Nxa8+ {[%clk 0:02:53.3]} 24... Rxa8 {[%clk 0:02:17]} 25. Bd3
{[%clk 0:02:51.3]} 25... Ra2 {[%clk 0:02:17.9]} 1-0

[Event "*** Titled Tuesday Blitz AM"]
[Site "Chess.com"]
[Date "2020.01.07"]
[Round "1"]
[White "SHIVACalypso"]
[Black "mikhaillushenkov"]
[Result "0-1"]
[WhiteElo "2264"]
[BlackElo "2654"]
[TimeControl "180+2"]
[EndTime "9:03:27 PST"]
[Termination "mikhaillushenkov won by checkmate"]

1. Nf3 {[%clk 0:03:00.1]} 1... d5 {[%clk 0:03:00.8]} 2. c4 {[%clk 0:02:56.3]}
2... d4 {[%clk 0:03:01.2]} 3. e3 {[%clk 0:02:57.2]} 3... Nc6 {[%clk 0:03:01.3]}
4. exd4 {[%clk 0:02:57.1]} 4... Nxd4 {[%clk 0:03:03.2]} 5. Nxd4 {[%clk
0:02:58.5]} 5... Qxd4 {[%clk 0:03:05.1]} 6. Nc3 {[%clk 0:03:00]} 6... c6 {[%clk
0:03:04.1]} 7. d3 {[%clk 0:03:00.7]} 7... Nh6 {[%clk 0:03:04.4]} 8. Be3 {[%clk
0:02:57.9]} 8... Qd8 {[%clk 0:03:00.1]} 9. d4 {[%clk 0:02:44.8]} 9... Nf5 {[%clk
0:03:00]} 10. Be2 {[%clk 0:02:45.9]} 10... g6 {[%clk 0:02:57.1]} 11. Qd2 {[%clk
0:02:37.7]} 11... Bg7 {[%clk 0:02:57.2]} 12. O-O-O {[%clk 0:02:37.9]} 12... O-O
{[%clk 0:02:56.9]} 13. g4 {[%clk 0:02:37.1]} 13... Nxe3 {[%clk 0:02:57.4]} 14.
Qxe3 {[%clk 0:02:34]} 14... b5 {[%clk 0:02:48.2]} 15. c5 {[%clk 0:02:24.9]}
15... b4 {[%clk 0:02:44.7]} 16. Ne4 {[%clk 0:02:23.9]} 16... Be6 {[%clk
0:02:45.6]} 17. b3 {[%clk 0:02:20]} 17... a5 {[%clk 0:02:43.9]} 18. Ng5 {[%clk
0:02:06.9]} 18... Bd5 {[%clk 0:02:43.6]} 19. Bf3 {[%clk 0:02:03.1]} 19... a4
{[%clk 0:02:40.8]} 20. Bxd5 {[%clk 0:02:02]} 20... Qxd5 {[%clk 0:02:42.7]} 21.
Kb2 {[%clk 0:01:59.4]} 21... axb3 {[%clk 0:02:38.7]} 22. axb3 {[%clk 0:01:59.1]}
22... Qxc5 {[%clk 0:02:35.1]} 23. Ne4 {[%clk 0:01:53.9]} 23... Ra2+ {[%clk
0:02:33.5]} 24. Kxa2 {[%clk 0:01:51.5]} 24... Qc2+ {[%clk 0:02:35.4]} 25. Ka1
{[%clk 0:01:52.5]} 25... Ra8# {[%clk 0:02:37.3]} 0-1

[Event "*** Titled Tuesday Blitz AM"]
[Site "Chess.com"]
[Date "2020.01.07"]
[Round "1"]
[White "Mazanchenko_Dmitry"]
[Black "Kubas1010"]
[Result "0-1"]
[WhiteElo "2223"]
[BlackElo "2614"]
[TimeControl "180+2"]
[EndTime "9:04:00 PST"]
[Termination "Kubas1010 won by checkmate"]

1. e4 {[%clk 0:03:00]} 1... e5 {[%clk 0:03:00.4]} 2. Nf3 {[%clk 0:02:59.6]} 2...
Nc6 {[%clk 0:03:01.1]} 3. d4 {[%clk 0:03:00.6]} 3... exd4 {[%clk 0:03:01.6]} 4.
Bc4 {[%clk 0:03:00.7]} 4... Nf6 {[%clk 0:03:01.2]} 5. e5 {[%clk 0:03:00.6]} 5...
Ng4 {[%clk 0:03:00.9]} 6. Bxf7+ {[%clk 0:02:56.1]} 6... Kxf7 {[%clk 0:03:01.4]}
7. Ng5+ {[%clk 0:02:56.6]} 7... Kg8 {[%clk 0:03:02.4]} 8. Qxg4 {[%clk 0:02:55]}
8... Nxe5 {[%clk 0:03:01.2]} 9. Qxd4 {[%clk 0:02:52.5]} 9... Qf6 {[%clk
0:02:59.5]} 10. O-O {[%clk 0:02:30.7]} 10... h6 {[%clk 0:02:59.7]} 11. Qd5+
{[%clk 0:02:30]} 11... Nf7 {[%clk 0:03:00.4]} 12. Nxf7 {[%clk 0:02:29]} 12...
Qxf7 {[%clk 0:03:01.6]} 13. Qd3 {[%clk 0:02:19.2]} 13... d5 {[%clk 0:03:01.7]}
14. Nc3 {[%clk 0:02:17.2]} 14... c6 {[%clk 0:03:02.1]} 15. Be3 {[%clk 0:02:14]}
15... Bf5 {[%clk 0:02:56.5]} 16. Qe2 {[%clk 0:02:14.3]} 16... Bd6 {[%clk
0:02:56.7]} 17. f4 {[%clk 0:02:11.9]} 17... Re8 {[%clk 0:02:53.6]} 18. Qf3
{[%clk 0:02:09]} 18... Kh7 {[%clk 0:02:51.3]} 19. Rae1 {[%clk 0:01:55.9]} 19...
Bxc2 {[%clk 0:02:39.3]} 20. f5 {[%clk 0:01:55.7]} 20... Rhf8 {[%clk 0:02:38.3]}
21. g4 {[%clk 0:01:49.6]} 21... Qf6 {[%clk 0:02:31.8]} 22. Bxa7 {[%clk
0:01:41.1]} 22... Qh4 {[%clk 0:02:25.3]} 23. Bf2 {[%clk 0:01:34.4]} 23... Qxh2#
{[%clk 0:02:25.5]} 0-1

[Event "*** Titled Tuesday Blitz AM"]
[Site "Chess.com"]
[Date "2020.01.07"]
[Round "1"]
[White "FairChess_on_YouTube"]
[Black "arminmusovic"]
[Result "1-0"]
[WhiteElo "3000"]
[BlackElo "2520"]
[TimeControl "180+2"]
[EndTime "9:04:24 PST"]
[Termination "FairChess_on_YouTube won by resignation"]

1. d4 {[%clk 0:02:47.5]} 1... d5 {[%clk 0:03:00]} 2. Nf3 {[%clk 0:02:48]} 2...
Nf6 {[%clk 0:03:00.6]} 3. c4 {[%clk 0:02:49.4]} 3... c5 {[%clk 0:03:01.4]} 4.
cxd5 {[%clk 0:02:46]} 4... cxd4 {[%clk 0:03:02.9]} 5. Qa4+ {[%clk 0:02:44.4]}
5... Qd7 {[%clk 0:03:03.8]} 6. Qxd4 {[%clk 0:02:41.1]} 6... Qxd5 {[%clk
0:03:05]} 7. Nc3 {[%clk 0:02:41.3]} 7... Qxd4 {[%clk 0:03:06.3]} 8. Nxd4 {[%clk
0:02:43.2]} 8... a6 {[%clk 0:03:08.2]} 9. g3 {[%clk 0:02:40.3]} 9... e5 {[%clk
0:03:08.1]} 10. Nc2 {[%clk 0:02:40.6]} 10... Bd7 {[%clk 0:03:07.5]} 11. Bg2
{[%clk 0:02:36.6]} 11... Bc6 {[%clk 0:03:09]} 12. O-O {[%clk 0:02:32.9]} 12...
Bxg2 {[%clk 0:03:09.1]} 13. Kxg2 {[%clk 0:02:34.8]} 13... h6 {[%clk 0:03:06.1]}
14. Ne3 {[%clk 0:02:31.5]} 14... Be7 {[%clk 0:03:02.6]} 15. Nf5 {[%clk
0:02:26.5]} 15... g6 {[%clk 0:02:47.8]} 16. Nxe7 {[%clk 0:02:25.8]} 16... Kxe7
{[%clk 0:02:49.7]} 17. b3 {[%clk 0:02:24.9]} 17... Nc6 {[%clk 0:02:50.4]} 18.
Ba3+ {[%clk 0:02:25.8]} 18... Ke6 {[%clk 0:02:51.1]} 19. Na4 {[%clk 0:02:24.9]}
19... Nd7 {[%clk 0:02:49.1]} 20. Rad1 {[%clk 0:02:22.8]} 20... Nd4 {[%clk
0:02:43.7]} 21. Rd2 {[%clk 0:02:15.5]} 21... b5 {[%clk 0:02:39.9]} 22. Nc5+
{[%clk 0:02:11.5]} 22... Nxc5 {[%clk 0:02:40.4]} 23. Bxc5 {[%clk 0:02:13.4]}
23... Rhd8 {[%clk 0:02:39.1]} 24. Rfd1 {[%clk 0:02:12.6]} 24... Nc6 {[%clk
0:02:40.4]} 25. Rd6+ {[%clk 0:02:12.5]} 25... Kf5 {[%clk 0:02:39.5]} 26. f3
{[%clk 0:02:09.8]} 26... Nd4 {[%clk 0:01:47.6]} 27. e4+ {[%clk 0:02:09.9]} 27...
Kg5 {[%clk 0:01:48.7]} 28. h4+ {[%clk 0:02:10.3]} 28... Kh5 {[%clk 0:01:49.9]}
29. Kh3 {[%clk 0:02:10.4]} 1-0

[Event "*** Titled Tuesday Blitz AM"]
[Site "Chess.com"]
[Date "2020.01.07"]
[Round "1"]
[White "RubensCezila"]
[Black "enzovsky"]
[Result "1-0"]
[WhiteElo "2603"]
[BlackElo "2195"]
[TimeControl "180+2"]
[EndTime "9:05:03 PST"]
[Termination "RubensCezila won by resignation"]

1. d4 {[%clk 0:02:58.3]} 1... Nf6 {[%clk 0:02:56.7]} 2. Nf3 {[%clk 0:02:59.4]}
2... g6 {[%clk 0:02:57.2]} 3. e3 {[%clk 0:03:00.4]} 3... Bg7 {[%clk 0:02:57.9]}
4. Bd3 {[%clk 0:03:00.8]} 4... O-O {[%clk 0:02:58.1]} 5. O-O {[%clk 0:03:02.1]}
5... d6 {[%clk 0:02:56.2]} 6. c4 {[%clk 0:02:54.5]} 6... Nbd7 {[%clk 0:02:53.5]}
7. Nc3 {[%clk 0:02:52.6]} 7... c5 {[%clk 0:02:49.9]} 8. Re1 {[%clk 0:02:46.4]}
8... Re8 {[%clk 0:02:41.3]} 9. a3 {[%clk 0:02:37.8]} 9... e5 {[%clk 0:02:36.6]}
10. dxe5 {[%clk 0:02:36.2]} 10... Nxe5 {[%clk 0:02:33.1]} 11. Nxe5 {[%clk
0:02:35.7]} 11... dxe5 {[%clk 0:02:35]} 12. Qc2 {[%clk 0:02:28.3]} 12... Be6
{[%clk 0:02:28.9]} 13. e4 {[%clk 0:02:23.1]} 13... Qd7 {[%clk 0:02:18.3]} 14.
Bg5 {[%clk 0:02:15.2]} 14... h6 {[%clk 0:02:17.3]} 15. Bxf6 {[%clk 0:02:09.9]}
15... Bxf6 {[%clk 0:02:19.2]} 16. Nd5 {[%clk 0:02:11]} 16... Bxd5 {[%clk
0:02:18]} 17. cxd5 {[%clk 0:02:12.7]} 17... Rac8 {[%clk 0:02:09.9]} 18. Qb3
{[%clk 0:02:08.1]} 18... a6 {[%clk 0:02:06.3]} 19. a4 {[%clk 0:02:06.8]} 19...
Bg7 {[%clk 0:01:53.7]} 20. Rec1 {[%clk 0:02:01.3]} 20... f5 {[%clk 0:01:50.7]}
21. f3 {[%clk 0:01:52.6]} 21... Rb8 {[%clk 0:01:43.7]} 22. Rxc5 {[%clk
0:01:40.8]} 22... Bf8 {[%clk 0:01:40.9]} 23. Rc2 {[%clk 0:01:33.9]} 23... b5
{[%clk 0:01:42]} 24. axb5 {[%clk 0:01:32.9]} 24... axb5 {[%clk 0:01:43.9]} 25.
Rc6 {[%clk 0:01:32.4]} 25... b4 {[%clk 0:01:40.5]} 26. Rxg6+ {[%clk 0:01:29.2]}
26... Kh7 {[%clk 0:01:40.8]} 27. Rc6 {[%clk 0:01:29.2]} 1-0

[Event "*** Titled Tuesday Blitz AM"]
[Site "Chess.com"]
[Date "2020.01.07"]
[Round "1"]
[White "Sn00pPawn"]
[Black "Mr_Sinigami"]
[Result "0-1"]
[WhiteElo "1959"]
[BlackElo "2546"]
[TimeControl "180+2"]
[EndTime "9:05:08 PST"]
[Termination "Mr_Sinigami won on time"]

1. d4 {[%clk 0:02:59.7]} 1... Nf6 {[%clk 0:02:59.9]} 2. c4 {[%clk 0:02:59.9]}
2... g6 {[%clk 0:03:01.1]} 3. Nc3 {[%clk 0:02:59.3]} 3... Bg7 {[%clk 0:03:01.9]}
4. e4 {[%clk 0:02:58.1]} 4... d6 {[%clk 0:03:03]} 5. Nf3 {[%clk 0:02:55.2]} 5...
O-O {[%clk 0:03:03.5]} 6. Be2 {[%clk 0:02:46.6]} 6... e5 {[%clk 0:03:03.4]} 7.
d5 {[%clk 0:02:07.5]} 7... a5 {[%clk 0:03:02.6]} 8. h3 {[%clk 0:01:59]} 8... Na6
{[%clk 0:03:02.6]} 9. g4 {[%clk 0:01:54.3]} 9... Nc5 {[%clk 0:03:02.3]} 10. Qc2
{[%clk 0:01:54.5]} 10... Ne8 {[%clk 0:03:01.1]} 11. Bd2 {[%clk 0:01:23.3]} 11...
f5 {[%clk 0:02:59.3]} 12. gxf5 {[%clk 0:01:21.1]} 12... gxf5 {[%clk 0:02:59.6]}
13. O-O-O {[%clk 0:01:01.4]} 13... fxe4 {[%clk 0:02:56.7]} 14. Nxe4 {[%clk
0:00:53.1]} 14... Bf5 {[%clk 0:02:52.1]} 15. Bd3 {[%clk 0:00:26]} 15... Nxd3+
{[%clk 0:02:41.7]} 16. Qxd3 {[%clk 0:00:26.5]} 16... Nf6 {[%clk 0:02:42.2]} 17.
Nxf6+ {[%clk 0:00:25]} 17... Qxf6 {[%clk 0:02:41]} 18. Qe3 {[%clk 0:00:16]}
18... Bg6 {[%clk 0:02:40.1]} 19. Ng5 {[%clk 0:00:11]} 19... Qf5 {[%clk
0:02:40.7]} 0-1

[Event "*** Titled Tuesday Blitz AM"]
[Site "Chess.com"]
[Date "2020.01.07"]
[Round "1"]
[White "crazy_machine"]
[Black "alex_zapata"]
[Result "1-0"]
[WhiteElo "2675"]
[BlackElo "2303"]
[TimeControl "180+2"]
[EndTime "9:05:10 PST"]
[Termination "crazy_machine won by resignation"]

1. d4 {[%clk 0:03:01.9]} 1... d5 {[%clk 0:03:00.2]} 2. Nc3 {[%clk 0:03:02.8]}
2... Nf6 {[%clk 0:03:01.5]} 3. Bf4 {[%clk 0:03:04.2]} 3... e6 {[%clk 0:03:02.2]}
4. Nb5 {[%clk 0:03:04.9]} 4... Na6 {[%clk 0:02:59.6]} 5. e3 {[%clk 0:03:06.1]}
5... Be7 {[%clk 0:02:56.3]} 6. Nf3 {[%clk 0:03:06.1]} 6... Ne4 {[%clk
0:02:55.2]} 7. Bd3 {[%clk 0:03:04.5]} 7... c6 {[%clk 0:02:53.1]} 8. Nc3 {[%clk
0:03:05.8]} 8... Nxc3 {[%clk 0:02:53.6]} 9. bxc3 {[%clk 0:03:06.7]} 9... O-O
{[%clk 0:02:36.4]} 10. O-O {[%clk 0:03:06]} 10... Bd6 {[%clk 0:02:32.6]} 11. Ne5
{[%clk 0:03:06.3]} 11... c5 {[%clk 0:02:27.1]} 12. Qh5 {[%clk 0:02:49.8]} 12...
g6 {[%clk 0:02:28.3]} 13. Qh6 {[%clk 0:02:30.9]} 13... c4 {[%clk 0:02:28.3]} 14.
Be2 {[%clk 0:02:22.3]} 14... f6 {[%clk 0:02:19.7]} 15. Nf3 {[%clk 0:02:09.2]}
15... Bxf4 {[%clk 0:02:19.8]} 16. Qxf4 {[%clk 0:02:11.1]} 16... Qc7 {[%clk
0:02:18.8]} 17. Qh4 {[%clk 0:02:11.1]} 17... Bd7 {[%clk 0:02:17.2]} 18. e4
{[%clk 0:02:12.1]} 18... Bc6 {[%clk 0:02:15.2]} 19. e5 {[%clk 0:02:12.3]} 19...
Qe7 {[%clk 0:02:09.7]} 20. Qh6 {[%clk 0:02:09.3]} 20... Qg7 {[%clk 0:02:09.2]}
21. Qxg7+ {[%clk 0:02:06.9]} 21... Kxg7 {[%clk 0:02:10.7]} 22. exf6+ {[%clk
0:02:08.5]} 22... Kxf6 {[%clk 0:02:08.4]} 23. Ne5 {[%clk 0:02:10]} 23... Nb8
{[%clk 0:02:08.5]} 24. Bg4 {[%clk 0:02:09.1]} 24... Nd7 {[%clk 0:02:08]} 25.
Rfe1 {[%clk 0:02:10.3]} 25... Nxe5 {[%clk 0:02:07.7]} 26. Rxe5 {[%clk
0:02:12.1]} 26... Bd7 {[%clk 0:02:08.4]} 27. Rae1 {[%clk 0:02:12.7]} 27... Rae8
{[%clk 0:02:09.4]} 28. f4 {[%clk 0:02:11.7]} 28... Rf7 {[%clk 0:02:05.8]} 29.
Bh3 {[%clk 0:02:07.3]} 29... Rfe7 {[%clk 0:02:05.9]} 30. g4 {[%clk 0:02:06.2]}
30... Kf7 {[%clk 0:02:03.8]} 31. Kf2 {[%clk 0:02:07.5]} 31... Kf6 {[%clk
0:02:02.9]} 32. Kg3 {[%clk 0:02:08.7]} 32... Kf7 {[%clk 0:02:01.4]} 33. Kh4
{[%clk 0:02:09.2]} 33... h6 {[%clk 0:02:02.1]} 34. Kg3 {[%clk 0:02:08.6]} 34...
Kg7 {[%clk 0:02:02.1]} 35. Bg2 {[%clk 0:02:09.8]} 35... Kf7 {[%clk 0:02:01.5]}
36. h4 {[%clk 0:02:11.2]} 36... Bc6 {[%clk 0:02:01.6]} 37. h5 {[%clk 0:02:10.3]}
37... gxh5 {[%clk 0:02:00.8]} 38. Rxh5 {[%clk 0:02:12.2]} 38... Kg7 {[%clk
0:02:00.5]} 39. Reh1 {[%clk 0:02:13.4]} 39... Rh8 {[%clk 0:02:01]} 40. g5 {[%clk
0:02:14.7]} 40... Ree8 {[%clk 0:01:51.4]} 41. Rxh6 {[%clk 0:02:15.4]} 41... Rxh6
{[%clk 0:01:52.3]} 42. Rxh6 {[%clk 0:02:17.3]} 42... Rh8 {[%clk 0:01:53]} 43.
Rxe6 {[%clk 0:02:17.6]} 1-0

[Event "*** Titled Tuesday Blitz AM"]
[Site "Chess.com"]
[Date "2020.01.07"]
[Round "1"]
[White "mortngabriel"]
[Black "mouseWLZ"]
[Result "0-1"]
[WhiteElo "2400"]
[BlackElo "2783"]
[TimeControl "180+2"]
[EndTime "9:05:25 PST"]
[Termination "mouseWLZ won on time"]

1. e4 {[%clk 0:03:00.9]} 1... d5 {[%clk 0:03:00.7]} 2. exd5 {[%clk 0:03:00.3]}
2... Qxd5 {[%clk 0:03:02.6]} 3. Nc3 {[%clk 0:03:01.3]} 3... Qd6 {[%clk
0:03:03.4]} 4. d4 {[%clk 0:03:00.7]} 4... c6 {[%clk 0:03:03.7]} 5. Nf3 {[%clk
0:03:01.9]} 5... Nf6 {[%clk 0:03:05.1]} 6. h3 {[%clk 0:03:02.7]} 6... Bf5 {[%clk
0:03:04.9]} 7. Ne5 {[%clk 0:02:53.9]} 7... Nbd7 {[%clk 0:03:04.2]} 8. Nc4 {[%clk
0:02:42.5]} 8... Qc7 {[%clk 0:03:05]} 9. Qf3 {[%clk 0:02:33.3]} 9... Be6 {[%clk
0:02:33.4]} 10. Bf4 {[%clk 0:02:29.1]} 10... Qd8 {[%clk 0:02:34.4]} 11. O-O-O
{[%clk 0:02:16.1]} 11... g6 {[%clk 0:02:33.6]} 12. Ne3 {[%clk 0:01:06.4]} 12...
Bg7 {[%clk 0:02:33.8]} 13. d5 {[%clk 0:01:06]} 13... cxd5 {[%clk 0:02:34.5]} 14.
Nexd5 {[%clk 0:01:01.9]} 14... Nxd5 {[%clk 0:02:35.1]} 15. Nxd5 {[%clk
0:01:02.5]} 15... O-O {[%clk 0:02:36.3]} 16. Nc7 {[%clk 0:00:54.6]} 16... Rc8
{[%clk 0:02:34.8]} 17. Qxb7 {[%clk 0:00:44.1]} 17... Bf5 {[%clk 0:02:32.4]} 18.
Bd3 {[%clk 0:00:06.4]} 18... Rb8 {[%clk 0:02:32.5]} 19. Qc6 {[%clk 0:00:06.1]}
19... Bxb2+ {[%clk 0:02:30.2]} 20. Kd2 {[%clk 0:00:07]} 20... Ne5 {[%clk
0:02:25]} 21. Bxe5 {[%clk 0:00:04.9]} 21... Bxe5 {[%clk 0:02:26.9]} 22. Nd5
{[%clk 0:00:03.1]} 22... Rc8 {[%clk 0:02:28.4]} 23. Qxc8 {[%clk 0:00:02.2]}
23... Bxc8 {[%clk 0:02:24.9]} 0-1

[Event "*** Titled Tuesday Blitz AM"]
[Site "Chess.com"]
[Date "2020.01.07"]
[Round "1"]
[White "wannabe2700"]
[Black "boo786"]
[Result "0-1"]
[WhiteElo "2786"]
[BlackElo "2426"]
[TimeControl "180+2"]
[EndTime "9:05:43 PST"]
[Termination "boo786 won by resignation"]

1. e4 {[%clk 0:03:01.9]} 1... c5 {[%clk 0:02:58]} 2. Nf3 {[%clk 0:03:03.1]} 2...
e6 {[%clk 0:02:59]} 3. d4 {[%clk 0:03:04.7]} 3... cxd4 {[%clk 0:03:00.1]} 4.
Nxd4 {[%clk 0:03:06.6]} 4... Nc6 {[%clk 0:03:00.7]} 5. Nc3 {[%clk 0:03:07.8]}
5... Qc7 {[%clk 0:03:01.6]} 6. Be3 {[%clk 0:03:07.8]} 6... Nf6 {[%clk 0:03:01]}
7. f4 {[%clk 0:03:02.2]} 7... Bb4 {[%clk 0:02:59.5]} 8. Nb5 {[%clk 0:02:07]}
8... Qa5 {[%clk 0:02:57.4]} 9. e5 {[%clk 0:01:39]} 9... Ne4 {[%clk 0:02:55.5]}
10. Qd3 {[%clk 0:01:27.7]} 10... Nxc3 {[%clk 0:02:55.8]} 11. bxc3 {[%clk
0:01:22.3]} 11... Be7 {[%clk 0:02:55.6]} 12. Be2 {[%clk 0:01:15.1]} 12... O-O
{[%clk 0:02:54.9]} 13. O-O {[%clk 0:01:13.7]} 13... f6 {[%clk 0:02:53]} 14. exf6
{[%clk 0:00:59.2]} 14... Bxf6 {[%clk 0:02:52.8]} 15. Nd4 {[%clk 0:00:41.7]}
15... d5 {[%clk 0:02:46.9]} 16. Nxc6 {[%clk 0:00:28.7]} 16... bxc6 {[%clk
0:02:46.5]} 17. Bd4 {[%clk 0:00:30.1]} 17... Bd7 {[%clk 0:02:26.4]} 18. Qe3
{[%clk 0:00:29.8]} 18... Rab8 {[%clk 0:02:19.1]} 19. Bd3 {[%clk 0:00:21.4]}
19... c5 {[%clk 0:01:50.3]} 20. Bxc5 {[%clk 0:00:21.6]} 20... Qxc3 {[%clk
0:01:46.8]} 21. Bxf8 {[%clk 0:00:21.6]} 21... Bd4 {[%clk 0:01:46]} 22. Bxh7+
{[%clk 0:00:18]} 22... Kxh7 {[%clk 0:01:42.1]} 0-1

[Event "*** Titled Tuesday Blitz AM"]
[Site "Chess.com"]
[Date "2020.01.07"]
[Round "1"]
[White "Sethu0025"]
[Black "Gogolev_Artemy"]
[Result "1-0"]
[WhiteElo "2805"]
[BlackElo "2414"]
[TimeControl "180+2"]
[EndTime "9:05:45 PST"]
[Termination "Sethu0025 won by resignation"]

1. e4 {[%clk 0:03:01.1]} 1... c5 {[%clk 0:02:49.3]} 2. Nf3 {[%clk 0:03:01.4]}
2... Nf6 {[%clk 0:02:49.1]} 3. e5 {[%clk 0:03:01.8]} 3... Nd5 {[%clk 0:02:49.8]}
4. Nc3 {[%clk 0:03:03.5]} 4... Nxc3 {[%clk 0:02:49.2]} 5. dxc3 {[%clk
0:03:04.3]} 5... Nc6 {[%clk 0:02:50.9]} 6. Bc4 {[%clk 0:03:01.8]} 6... e6 {[%clk
0:02:51.3]} 7. Bf4 {[%clk 0:03:00.6]} 7... Qb6 {[%clk 0:02:52.1]} 8. b3 {[%clk
0:02:41.3]} 8... Qc7 {[%clk 0:02:48.5]} 9. Qe2 {[%clk 0:02:40.6]} 9... a6 {[%clk
0:02:49.2]} 10. Bd3 {[%clk 0:02:40.2]} 10... b5 {[%clk 0:02:49.2]} 11. O-O
{[%clk 0:02:40.1]} 11... Bb7 {[%clk 0:02:48.6]} 12. Rfe1 {[%clk 0:02:38.6]}
12... h6 {[%clk 0:02:40.3]} 13. h4 {[%clk 0:02:38.2]} 13... Ne7 {[%clk
0:02:38.6]} 14. c4 {[%clk 0:02:32.9]} 14... bxc4 {[%clk 0:02:34.9]} 15. bxc4
{[%clk 0:02:33.3]} 15... Nc6 {[%clk 0:02:34.9]} 16. c3 {[%clk 0:02:33.6]} 16...
Be7 {[%clk 0:02:35.9]} 17. h5 {[%clk 0:02:33.2]} 17... Na5 {[%clk 0:02:08.9]}
18. Rab1 {[%clk 0:02:26]} 18... O-O {[%clk 0:02:09.3]} 19. Qe3 {[%clk 0:02:15]}
19... Rfe8 {[%clk 0:01:47]} 20. Bxh6 {[%clk 0:01:53.9]} 20... Bxf3 {[%clk
0:01:45]} 21. gxf3 {[%clk 0:01:51.7]} 21... f5 {[%clk 0:01:45.8]} 22. Kh1 {[%clk
0:01:41.7]} 22... Kh7 {[%clk 0:01:34.5]} 23. Bg5 {[%clk 0:01:36]} 23... Qd8
{[%clk 0:01:33]} 24. Rg1 {[%clk 0:01:35.5]} 24... Bxg5 {[%clk 0:01:33]} 25. Rxg5
{[%clk 0:01:36.1]} 25... Qe7 {[%clk 0:01:32.6]} 26. Rbg1 {[%clk 0:01:36.6]}
26... Rg8 {[%clk 0:01:32.5]} 27. f4 {[%clk 0:01:30.1]} 27... Raf8 {[%clk
0:01:26.5]} 28. Qh3 {[%clk 0:01:23.1]} 28... d6 {[%clk 0:01:20.8]} 29. Rg6
{[%clk 0:01:23.3]} 29... dxe5 {[%clk 0:01:20.6]} 30. h6 {[%clk 0:01:24.2]} 1-0

[Event "*** Titled Tuesday Blitz AM"]
[Site "Chess.com"]
[Date "2020.01.07"]
[Round "1"]
[White "mishanick"]
[Black "albi1999"]
[Result "1-0"]
[WhiteElo "2963"]
[BlackElo "2517"]
[TimeControl "180+2"]
[EndTime "9:05:48 PST"]
[Termination "mishanick won by resignation"]

1. d4 {[%clk 0:03:01]} 1... Nf6 {[%clk 0:03:00.1]} 2. c4 {[%clk 0:03:01.5]} 2...
e6 {[%clk 0:03:01.3]} 3. Nf3 {[%clk 0:03:02.4]} 3... d5 {[%clk 0:03:02.1]} 4.
Nc3 {[%clk 0:02:58.9]} 4... c5 {[%clk 0:03:02.5]} 5. cxd5 {[%clk 0:02:59.4]}
5... Nxd5 {[%clk 0:03:04.4]} 6. e4 {[%clk 0:02:59.9]} 6... Nxc3 {[%clk
0:03:05.8]} 7. bxc3 {[%clk 0:03:01.8]} 7... cxd4 {[%clk 0:03:07.7]} 8. cxd4
{[%clk 0:03:03.7]} 8... Bb4+ {[%clk 0:03:09.1]} 9. Bd2 {[%clk 0:03:04.4]} 9...
Bxd2+ {[%clk 0:03:10.7]} 10. Qxd2 {[%clk 0:03:06.3]} 10... O-O {[%clk
0:03:12.1]} 11. Bc4 {[%clk 0:03:05.9]} 11... Nd7 {[%clk 0:03:12.9]} 12. O-O
{[%clk 0:03:07.3]} 12... b6 {[%clk 0:03:14.5]} 13. Rfe1 {[%clk 0:03:07.8]} 13...
Bb7 {[%clk 0:03:15.9]} 14. a4 {[%clk 0:03:09.1]} 14... h6 {[%clk 0:02:57.1]} 15.
a5 {[%clk 0:02:57.6]} 15... bxa5 {[%clk 0:02:59]} 16. Rxa5 {[%clk 0:02:58.9]}
16... Nf6 {[%clk 0:02:48.6]} 17. Bd3 {[%clk 0:02:59.3]} 17... Qc7 {[%clk
0:02:42]} 18. h3 {[%clk 0:02:52.5]} 18... Rfd8 {[%clk 0:02:38.9]} 19. Rc5 {[%clk
0:02:52.5]} 19... Qe7 {[%clk 0:02:37.9]} 20. Qa5 {[%clk 0:02:51.6]} 20... a6
{[%clk 0:02:22.8]} 21. Ne5 {[%clk 0:02:37.6]} 21... Rac8 {[%clk 0:02:00.1]} 22.
Rxc8 {[%clk 0:02:20.3]} 22... Rxc8 {[%clk 0:01:59.9]} 23. Qb6 {[%clk 0:02:16.4]}
23... Qc7 {[%clk 0:01:57.8]} 24. Qxc7 {[%clk 0:02:07.2]} 24... Rxc7 {[%clk
0:01:59.7]} 25. f3 {[%clk 0:02:08.5]} 25... Nd7 {[%clk 0:01:54.5]} 26. Nc4
{[%clk 0:02:02.4]} 26... Kf8 {[%clk 0:01:40]} 27. Rb1 {[%clk 0:02:01.3]} 27...
Ke7 {[%clk 0:01:38.3]} 28. Kf2 {[%clk 0:02:02.7]} 28... Bc6 {[%clk 0:01:35.6]}
29. Na5 {[%clk 0:02:00.4]} 29... Bb5 {[%clk 0:01:12.5]} 30. Bxb5 {[%clk
0:01:55.2]} 30... axb5 {[%clk 0:01:14.4]} 31. Rxb5 {[%clk 0:01:57]} 31... Rc2+
{[%clk 0:01:14.7]} 32. Kg3 {[%clk 0:01:49.7]} 32... Nf6 {[%clk 0:01:15.3]} 33.
h4 {[%clk 0:01:45.8]} 33... Nh5+ {[%clk 0:01:09.2]} 34. Rxh5 {[%clk 0:01:44.8]}
1-0